bitfinex-derivatives/quotes_ETHF0:USTF0_20250626
["timestamp","ask_amount","ask_price","bid_price","bid_amount"]
[1750946373786,0.82129,2434.4,2434.3,3.2078]
[1750946374082,3.2078,2434.4,2434.2,7.326]
[1750946374273,3.2078,2434.4,2434.2,8.14736]
[1750946374274,0.82135,2434.3,2434.2,8.14736]
[1750946374478,0.82133,2434.3,2434.2,7.326]
[1750946374784,6.69302,2434.8,2434.3,0.82131]
[1750946374980,4.6401,2434.8,2434.2,13.76654673]
[1750946375183,0.82124,2434.6,2434.5,0.82126]
[1750946375385,0.82122,2434.7,2434.5,0.82126]
[1750946375584,3.2078,2434.8,2434.2,15.81988673]
[1750946375787,4.02897,2434.8,2434.7,0.82119]
[1750946376274,10.72725,2435.2,2434.7,0.82119]
[1750946376275,3.2078,2435.2,2434.7,7.326]
[1750946376478,0.8211,2435.0,2434.7,7.326]
[1750946376880,0.8211,2435.0,2434.8,0.82113]
[1750946377084,0.82109,2435.1,2435.0,0.82109]
[1750946377279,0.82109,2435.1,2434.9,0.8211]
[1750946377478,0.82109,2435.1,2435.0,0.82109]
[1750946377786,0.82108,2435.1,2434.9,0.8211]
[1750946378080,0.82104,2435.2,2435.1,0.82105]
[1750946378277,0.821,2435.3,2435.2,0.82101]
[1750946378474,1.5161,2435.4,2435.0,0.82107]
[1750946378676,0.82104,2435.2,2435.1,0.82106]
[1750946379087,0.82104,2435.2,2435.0,0.82107]
[1750946379380,0.82104,2435.2,2435.1,0.82106]
[1750946379586,3.2078,2435.2,2434.8,0.82113]
[1750946379787,3.2078,2435.2,2434.9,0.82111]
[1750946380179,0.82108,2435.1,2435.0,0.82109]
[1750946380678,0.82111,2435.0,2434.9,0.82111]
[1750946380986,3.2078,2435.2,2434.7,7.326]
[1750946381190,0.8211,2435.0,2434.9,0.82111]
[1750946381378,3.2078,2435.2,2434.7,7.326]
[1750946381587,0.82112,2435.0,2434.9,0.82112]
[1750946381891,0.82113,2434.9,2434.8,8.11514]
[1750946382078,4.5516,2435.2,2434.8,7.294]
[1750946382283,3.2078,2435.2,2434.8,8.11514]
[1750946382581,3.2078,2435.2,2434.8,7.294]
[1750946382582,0.8211,2435.0,2434.8,7.294]
[1750946382887,0.8211,2435.0,2434.9,0.82112]
[1750946383387,0.82108,2435.1,2435.0,0.82109]
[1750946384091,0.8211,2435.0,2434.9,0.8211]
[1750946385189,3.2078,2435.2,2434.7,8.11518]
[1750946385190,0.82118,2434.8,2434.7,8.11518]
[1750946386179,4.6096,2435.2,2434.7,7.294]
[1750946386379,0.8211,2435.0,2434.9,0.82111]
[1750946387788,0.82112,2435.0,2434.9,0.82112]
[1750946388685,4.6096,2435.2,2434.5,4.6154]
[1750946388895,0.82115,2434.9,2434.8,0.82115]
[1750946390197,0.82119,2434.8,2434.6,0.82121]
[1750946390487,1.59838,2434.8,2434.6,0.82121]
[1750946390682,0.82122,2434.7,2434.5,0.82124]
[1750946390885,0.82126,2434.5,2434.3,2.45699448]
[1750946391085,0.82129,2434.4,2434.2,9.75102448]
[1750946391289,0.82129,2434.4,2434.3,0.82133]
[1750946391486,1.5112,2434.8,2434.5,0.82126]
[1750946391789,0.82123,2434.6,2434.4,1.63567448]
[1750946391985,0.82126,2434.5,2434.3,9.75098448]
[1750946392186,0.82125,2434.6,2434.4,0.82129]
[1750946392490,0.82126,2434.5,2434.4,0.82129]
[1750946393090,0.82125,2434.6,2434.4,0.82129]
[1750946393492,0.82126,2434.5,2434.4,0.82129]
[1750946394788,3.2078,2435.1,2434.4,12.96297942]
[1750946394987,0.807,2435.0,2434.9,0.82112]
[1750946395693,1.62811,2435.0,2434.8,0.82115]
[1750946395994,0.82107,2435.1,2434.9,0.82112]
[1750946396195,0.82109,2435.0,2434.8,0.82114]
[1750946396397,0.82114,2434.9,2434.7,4.02897]
[1750946396597,0.82116,2434.8,2434.7,3.2078]
[1750946396893,5.65254563,2435.1,2434.6,0.82121]
[1750946397093,0.82117,2434.8,2434.6,0.82121]
[1750946397398,0.82119,2434.7,2434.6,0.82121]
[1750946397697,0.82121,2434.7,2434.6,0.82123]
[1750946398695,0.82121,2434.7,2434.5,0.82124]
[1750946399399,0.82121,2434.7,2434.5,0.82123]
[1750946399695,0.82121,2434.7,2434.6,0.82123]
[1750946399996,0.82121,2434.7,2434.5,0.82124]
[1750946399997,0.82119,2434.7,2434.5,0.82124]
[1750946400196,0.82124,2434.6,2434.5,0.82125]
[1750946400496,0.82118,2434.8,2434.6,0.8212]
[1750946400702,3.78614563,2435.0,2434.4,8.7432]
[1750946400894,0.8212,2434.7,2434.6,0.82121]
[1750946401196,0.82126,2434.5,2434.4,7.294]
[1750946401596,5.83893563,2435.0,2434.2,8.93155301]
[1750946401597,0.82133,2434.3,2434.2,8.93155301]
[1750946401795,0.82133,2434.3,2434.2,7.294]
[1750946402100,0.82136,2434.2,2434.1,1.63755301]
[1750946402299,0.809,2434.5,2434.3,0.82129]
[1750946402494,0.809,2434.5,2434.1,1.63755301]
[1750946402696,0.82134,2434.3,2434.1,1.63755301]
[1750946402892,0.82131,2434.4,2434.3,0.82133]
[1750946403093,0.809,2434.5,2434.4,0.82129]
[1750946403294,0.82123,2434.6,2434.5,0.82126]
[1750946403498,0.82125,2434.6,2434.4,0.82128]
[1750946403700,0.82125,2434.6,2434.5,0.82126]
[1750946404000,0.82129,2434.4,2434.3,3.06221]
[1750946404201,0.82128,2434.5,2434.4,0.82129]
[1750946404402,0.82128,2434.5,2434.3,3.06222]
[1750946404903,0.82129,2434.4,2434.3,2.2409]
[1750946405105,0.82129,2434.4,2434.3,3.06223]
[1750946405594,0.82129,2434.4,2434.3,2.2409]
[1750946406094,0.82129,2434.4,2434.3,3.06223]
[1750946406289,0.82129,2434.4,2434.3,2.2409]
[1750946406494,0.82129,2434.4,2434.3,3.06223]
[1750946406796,0.82126,2434.5,2434.4,0.82127]
[1750946406996,0.82126,2434.5,2434.4,2.17377]
[1750946407202,0.82126,2434.5,2434.4,1.3525]
[1750946407402,2.44474563,2435.1,2434.4,20.08804673]
[1750946407698,4.2637768,2436.0,2435.0,9.64834673]
[1750946407894,0.82089,2435.6,2435.5,3.2078]
[1750946408095,0.82089,2435.6,2435.1,6.1685]
[1750946408096,0.82091,2435.6,2435.1,6.1685]
[1750946408295,0.82088,2435.7,2435.5,0.82091]
[1750946408495,0.82085,2435.8,2435.5,0.8209]
[1750946408695,0.82086,2435.7,2435.5,0.8209]
[1750946408896,3.2078,2435.9,2435.6,0.82089]
[1750946409093,1.0,2436.0,2435.7,6.44054673]
[1750946409600,0.8208,2435.9,2435.8,8.7312]
[1750946410207,1.0,2436.0,2435.9,0.82079]
[1750946410401,1.82075,2436.0,2435.9,1.3839]
[1750946410904,0.82079,2435.9,2435.8,8.0443]
[1750946411097,0.82085,2435.7,2435.6,0.7806]
[1750946411302,0.82092,2435.5,2435.4,3.2078]
[1750946411505,0.82091,2435.6,2435.4,3.2078]
[1750946411702,5.4013,2435.9,2435.4,3.2078]
[1750946412100,0.82092,2435.5,2435.4,3.2078]
[1750946412508,0.82096,2435.4,2435.3,8.4875807]
[1750946412698,0.82096,2435.4,2435.3,7.26]
[1750946413306,0.82099,2435.3,2435.2,8.4875807]
[1750946413807,0.82099,2435.3,2435.2,9.8909807]
[1750946414199,5.26008,2435.6,2435.1,3.2078]
[1750946414200,0.82102,2435.2,2435.1,3.2078]
[1750946414406,0.82106,2435.1,2435.0,1.2275807]
[1750946415004,3.2078,2435.3,2434.9,8.4875807]
[1750946415306,0.82108,2435.1,2434.9,10.7120907]
[1750946415508,0.8209,2435.4,2434.9,9.8909807]
[1750946415509,0.82109,2435.0,2434.9,9.8909807]
[1750946415710,0.82108,2435.1,2434.9,10.7121007]
[1750946415913,3.2078,2435.3,2435.0,1.2275807]
[1750946416207,0.82104,2435.2,2435.0,1.4034]
[1750946416406,3.2078,2435.3,2435.0,3.02497]
[1750946416607,0.82104,2435.2,2435.1,0.82106]
[1750946416800,4.0288,2435.3,2435.1,2.15446]
[1750946417001,3.2078,2435.3,2435.2,0.82102]
[1750946419206,0.82087,2435.7,2435.5,0.8209]
[1750946419505,0.82094,2435.5,2435.4,7.26]
[1750946419712,5.25999,2435.7,2435.2,3.2078]
[1750946419914,0.82096,2435.4,2435.3,7.26]
[1750946420101,5.2602,2435.4,2434.9,1.2275807]
[1750946420307,0.82109,2435.0,2434.9,1.2275807]
[1750946420508,0.8189,2435.3,2434.9,1.2275807]
[1750946420710,0.8189,2435.3,2434.9,2.6266807]
[1750946420912,0.82104,2435.2,2435.1,0.82106]
[1750946421210,0.8189,2435.3,2435.0,0.82108]
[1750946421414,0.8189,2435.3,2434.9,29.8277907]
[1750946421415,0.82109,2435.0,2434.9,29.8277907]
[1750946421615,0.82108,2435.1,2435.0,0.82109]
[1750946421817,0.82109,2435.0,2434.9,1.2275807]
[1750946422018,0.82109,2435.0,2434.9,8.4875807]
[1750946422316,0.82112,2434.9,2434.8,1.2275807]
[1750946422510,3.2078,2435.1,2434.7,13.8269807]
[1750946422511,0.82116,2434.8,2434.7,13.8269807]
[1750946423306,3.2078,2434.8,2434.5,4.35705301]
[1750946423610,0.8212,2434.7,2434.5,4.35705301]
[1750946423914,0.82123,2434.6,2434.5,5.68025301]
[1750946424115,0.82121,2434.7,2434.5,5.68025301]
[1750946424316,0.82123,2434.6,2434.5,5.68025301]
[1750946424505,0.82122,2434.7,2434.5,6.50150301]
[1750946424706,6.66473,2435.1,2434.5,5.68025301]
[1750946424910,0.82123,2434.6,2434.5,5.68025301]
[1750946425111,0.82122,2434.7,2434.5,6.50150301]
[1750946425309,4.612,2435.1,2434.5,12.94025301]
[1750946425514,0.82117,2434.8,2434.6,0.82121]
[1750946425821,0.82119,2434.7,2434.6,1.4604]
[1750946426120,0.82118,2434.8,2434.6,1.4604]
[1750946426306,0.82115,2434.9,2434.6,1.4604]
[1750946426512,0.82115,2434.9,2434.6,2.2816]
[1750946426810,0.82115,2434.9,2434.6,2.5607]
[1750946427009,0.8189,2435.3,2434.7,6.44054673]
[1750946427315,1.5741,2435.3,2434.8,1.4604]
[1750946427816,0.82112,2434.9,2434.8,1.4604]
[1750946428004,0.82112,2435.0,2434.8,1.4604]
[1750946428208,2.9418,2435.3,2434.8,1.4604]
[1750946428209,0.82112,2434.9,2434.8,1.4604]
[1750946428410,0.82104,2435.2,2435.0,0.82108]
[1750946428816,2.39512,2435.3,2435.0,0.82107]
[1750946429022,0.82102,2435.2,2435.1,1.4499]
[1750946429206,0.82109,2435.0,2434.9,7.26]
[1750946429912,5.02273,2435.3,2434.8,7.26]
[1750946430114,0.82112,2435.0,2434.8,8.08114]
[1750946430314,5.02268,2435.3,2434.8,7.26]
[1750946430514,0.82112,2434.9,2434.8,7.26]
[1750946431420,3.2078,2435.1,2434.6,0.2791]
[1750946431421,0.82119,2434.7,2434.6,0.2791]
[1750946431618,2.0528,2435.0,2434.5,7.64305301]
[1750946431619,0.82123,2434.6,2434.5,7.64305301]
[1750946431814,1.63173,2434.6,2434.5,6.0055]
[1750946432120,0.82126,2434.5,2434.4,0.1395]
[1750946432320,4.02906,2434.5,2434.4,0.1395]
[1750946432617,0.82124,2434.6,2434.4,4.02907]
[1750946432821,4.02896,2434.8,2434.4,10.4678]
[1750946433123,0.82113,2434.9,2434.7,4.02898]
[1750946433316,0.82113,2434.9,2434.8,7.261]
[1750946433621,4.02887,2435.1,2434.9,0.82112]
[1750946433810,4.02888,2435.1,2434.9,0.82111]
[1750946434217,0.82109,2435.0,2434.8,8.7004]
[1750946434415,0.82112,2434.9,2434.8,8.7004]
[1750946434615,0.82111,2435.0,2434.8,9.52154]
[1750946434826,0.82109,2435.0,2434.8,9.52154]
[1750946435132,1.5159,2435.2,2435.1,0.82106]
[1750946435329,1.5159,2435.2,2435.0,3.2078]
[1750946435635,0.82099,2435.3,2435.2,0.821]
[1750946435932,0.82102,2435.2,2435.1,0.82104]
[1750946436231,3.2078,2435.5,2435.0,3.2078]
[1750946436433,0.7434,2435.6,2435.1,1.4537]
[1750946436632,0.82099,2435.3,2435.2,0.7936]
[1750946436930,0.82093,2435.5,2435.1,1.4537]
[1750946437129,1.5643,2435.6,2435.2,7.261]
[1750946437322,5.431,2435.8,2435.5,0.82092]
[1750946437323,0.82087,2435.7,2435.5,0.82092]
[1750946437525,0.7819,2435.8,2435.4,3.2078]
[1750946438032,0.7819,2435.8,2435.7,0.82085]
[1750946438231,1.0,2436.0,2435.4,3.2078]
[1750946438232,1.82078,2436.0,2435.8,0.8208]
[1750946438438,1.0,2436.0,2435.7,0.82084]
[1750946438635,1.82078,2436.0,2435.8,0.82082]
[1750946438835,1.0,2436.0,2435.6,7.261]
[1750946439035,0.82084,2435.8,2435.7,1.4464]
[1750946439233,0.82081,2435.9,2435.7,1.4464]
[1750946439428,0.82082,2435.8,2435.7,1.4464]
[1750946439830,0.82085,2435.7,2435.6,7.261]
[1750946440132,0.82085,2435.7,2435.6,8.08189]
[1750946441240,0.82084,2435.8,2435.7,0.82085]
[1750946441439,0.8158,2435.9,2435.8,0.82082]
[1750946441645,1.63659,2435.9,2435.8,0.82082]
[1750946441836,1.63659,2435.9,2435.7,0.82084]
[1750946442036,1.63659,2435.9,2435.8,0.82082]
[1750946442532,1.0,2436.0,2435.9,0.82079]
[1750946443142,1.0,2436.0,2435.7,3.2078]
[1750946443340,0.82082,2435.8,2435.7,3.2078]
[1750946443942,0.82087,2435.7,2435.5,0.82089]
[1750946444146,1.0,2436.0,2435.6,13.67154673]
[1750946444438,1.0,2436.0,2435.9,4.02859]
[1750946444742,1.0,2436.0,2435.9,10.46913673]
[1750946445636,1.0,2436.0,2435.9,4.02859]
[1750946445839,1.0,2436.0,2435.9,11.25859]
[1750946446837,1.0,2436.0,2435.6,3.2078]
[1750946447139,1.82076,2436.0,2435.8,6.44054673]
[1750946447340,1.0,2436.0,2435.8,6.44054673]
[1750946447541,1.82076,2436.0,2435.8,7.26135673]
[1750946447735,1.82076,2436.0,2435.8,0.82082]
[1750946447930,1.0,2436.0,2435.7,1.4412]
[1750946448142,1.0,2436.0,2435.9,0.82079]
[1750946448445,1.0,2436.0,2435.7,1.4412]
[1750946448639,1.0,2436.0,2435.9,0.82079]
[1750946448841,1.0,2436.0,2435.7,2.26204]
[1750946449145,1.82078,2436.0,2435.8,0.82082]
[1750946449339,0.82079,2435.9,2435.7,1.4412]
[1750946449539,1.82078,2436.0,2435.8,0.8208]
[1750946449844,0.82079,2435.9,2435.8,0.82079]
[1750946450345,0.82081,2435.9,2435.7,2.26204]
[1750946450643,0.82081,2435.9,2435.7,2.26203]
[1750946450838,0.82079,2435.9,2435.8,7.23]
[1750946451243,0.82079,2435.9,2435.8,8.05082]
[1750946451845,0.82079,2435.9,2435.8,7.23]
[1750946452043,0.82079,2435.9,2435.8,8.04982]
[1750946452545,0.82079,2435.9,2435.8,7.229]
[1750946452946,0.82085,2435.7,2435.6,10.4368]
[1750946453846,0.82083,2435.8,2435.6,11.25767]
[1750946454042,1.0,2436.0,2435.6,10.4368]
[1750946454239,0.82083,2435.8,2435.6,10.4368]
[1750946454648,0.82081,2435.9,2435.6,10.4368]
[1750946454834,0.82081,2435.9,2435.8,0.82082]
[1750946455034,1.0,2436.0,2435.6,11.8433]
[1750946455239,1.82077,2436.0,2435.6,11.8433]
[1750946455545,0.82079,2435.9,2435.8,0.8208]
[1750946455847,0.82085,2435.7,2435.6,3.2078]
[1750946456047,0.82095,2435.4,2435.3,3.2078]
[1750946456441,0.82107,2435.1,2435.0,3.2078]
[1750946456636,1.3955,2435.5,2435.0,3.2078]
[1750946456838,3.2078,2435.5,2435.0,3.2078]
[1750946457038,0.82112,2434.9,2434.8,8.0508]
[1750946457237,4.6033,2435.5,2434.9,0.8211]
[1750946457238,2.05239,2435.4,2434.9,0.8211]
[1750946457439,0.82109,2435.0,2434.8,10.29424]
[1750946457641,0.82112,2434.9,2434.8,9.4731]
[1750946457837,0.82112,2434.9,2434.8,7.229]
[1750946458049,0.82111,2435.0,2434.8,7.229]
[1750946458248,0.82111,2435.0,2434.8,8.05013]
[1750946458450,0.82112,2434.9,2434.8,8.05013]
[1750946458646,0.82112,2434.9,2434.8,10.1039]
[1750946459244,0.82112,2434.9,2434.8,2.8749]
[1750946459446,4.02892,2434.9,2434.8,2.8749]
[1750946460446,0.82109,2435.0,2434.8,2.8749]
[1750946460646,0.82111,2435.0,2434.8,5.14714]
[1750946460843,0.82111,2435.0,2434.9,8.05112]
[1750946461042,0.7908,2435.5,2434.9,13.67054673]
[1750946461248,4.80251,2435.6,2435.2,6.44054673]
[1750946461450,0.82087,2435.7,2435.5,7.26145673]
[1750946461654,0.82087,2435.7,2435.6,1.4511]
[1750946461857,0.82087,2435.7,2435.6,2.27199]
[1750946462052,0.82084,2435.8,2435.6,2.27199]
[1750946462250,1.0,2436.0,2435.6,1.4511]
[1750946462854,1.0,2436.0,2435.6,11.09944673]
[1750946463060,1.82077,2436.0,2435.8,0.82081]
[1750946463261,0.82085,2435.7,2435.6,4.6589]
[1750946463553,0.82083,2435.8,2435.6,5.47979]
[1750946463849,0.82081,2435.9,2435.7,0.82085]
[1750946464057,0.82093,2435.5,2435.3,4.02877]
[1750946464258,0.82093,2435.5,2435.4,7.23]
[1750946465150,0.82091,2435.6,2435.4,7.23]
[1750946465345,3.2078,2435.9,2435.4,8.6816]
[1750946465552,0.82084,2435.8,2435.6,9.64834673]
[1750946465757,0.82081,2435.9,2435.6,9.64834673]
[1750946465959,0.82082,2435.8,2435.7,1.4516]
[1750946466657,1.0,2436.0,2435.7,1.4516]
[1750946466854,0.82082,2435.8,2435.7,1.4516]
[1750946468757,0.82081,2435.9,2435.7,1.4516]
[1750946469158,1.0,2436.0,2435.7,7.89214673]
[1750946469358,0.82078,2435.9,2435.7,7.89214673]
[1750946469560,1.82077,2436.0,2435.8,1.3637]
[1750946469753,0.82078,2435.9,2435.8,2.099]
[1750946469961,1.82077,2436.0,2435.8,2.099]
[1750946470159,1.0,2436.0,2435.9,4.02858]
[1750946470459,1.0,2436.0,2435.9,4.5715]
[1750946470760,0.82062,2436.4,2436.0,0.82075]
[1750946470960,0.82062,2436.4,2436.2,3.2078]
[1750946471258,4.0284,2436.5,2436.3,8.5969]
[1750946471863,3.2078,2436.5,2436.3,8.5969]
[1750946472160,0.8206,2436.5,2436.3,8.5969]
[1750946472347,1.59656,2436.6,2436.3,9.41755]
[1750946472551,0.776,2436.6,2436.3,8.5969]
[1750946472947,1.59656,2436.6,2436.3,8.5969]
[1750946473164,5.66282653,2436.9,2436.3,8.5969]
[1750946473362,0.82051,2436.7,2436.4,1.5934]
[1750946473549,0.82051,2436.7,2436.5,1.3949]
[1750946473754,0.8205,2436.8,2436.5,1.3949]
[1750946473959,0.8205,2436.8,2436.5,2.21548]
[1750946474156,0.82052,2436.7,2436.5,4.6027]
[1750946474456,3.2078,2436.9,2436.5,4.6027]
[1750946474457,0.82055,2436.6,2436.5,3.2078]
[1750946475262,0.82061,2436.4,2436.3,7.202]
[1750946475457,0.8206,2436.5,2436.3,7.201]
[1750946475654,0.82061,2436.4,2436.3,7.201]
[1750946477865,0.82065,2436.3,2436.2,10.4088]
[1750946478056,2.05176,2436.2,2435.7,1.63496404]
[1750946478363,3.2078,2436.0,2435.6,1.77436404]
[1750946478557,0.82081,2435.9,2435.7,1.4562]
[1750946478762,0.82082,2435.8,2435.7,1.4562]
[1750946478957,0.82085,2435.7,2435.6,0.1394]
[1750946479156,4.02865,2435.7,2435.6,0.1394]
[1750946479855,4.02865,2435.7,2435.5,3.2847]
[1750946479856,0.82088,2435.6,2435.5,3.2847]
[1750946480560,0.82088,2435.6,2435.5,2.34066]
[1750946480761,0.82109,2435.0,2434.9,1.63496404]
[1750946480956,4.02889,2435.0,2434.9,1.63496404]
[1750946481263,0.82115,2434.8,2434.7,7.2]
[1750946482257,3.2078,2435.0,2434.3,2.091]
[1750946482258,0.82129,2434.4,2434.3,2.091]
[1750946482460,0.82129,2434.4,2434.3,9.292]
[1750946482666,0.82128,2434.5,2434.3,9.292]
[1750946483263,0.82126,2434.5,2434.3,9.292]
[1750946483478,0.82124,2434.6,2434.3,9.292]
[1750946483666,3.2078,2434.7,2434.5,0.82124]
[1750946483961,3.2078,2434.7,2434.6,1.4003]
[1750946484163,0.82114,2434.9,2434.6,2.22152]
[1750946484366,0.82114,2434.9,2434.6,1.4003]
[1750946484558,0.82114,2434.9,2434.7,9.9677]
[1750946484862,3.2078,2435.0,2434.9,0.82112]
[1750946485365,3.2078,2435.0,2434.9,3.00502]
[1750946485667,0.82102,2435.2,2434.9,2.1839]
[1750946485962,0.82109,2435.0,2434.9,2.1839]
[1750946486158,0.82109,2435.0,2434.9,9.3859]
[1750946486563,0.82109,2435.0,2434.9,7.202]
[1750946488268,4.02889,2435.0,2434.9,7.202]
[1750946488459,0.82115,2434.8,2434.7,2.7657]
[1750946488766,0.82115,2434.8,2434.7,9.9677]
[1750946489169,3.2078,2435.0,2434.7,9.9677]
[1750946489370,0.82115,2434.8,2434.7,11.3936]
[1750946490770,0.82115,2434.8,2434.7,9.9677]
[1750946491677,0.82114,2434.9,2434.7,9.9677]
[1750946492275,0.82114,2434.9,2434.8,1.4567]
[1750946492967,0.82115,2434.8,2434.7,9.9677]
[1750946493163,0.82115,2434.9,2434.7,9.9677]
[1750946493375,0.82115,2434.8,2434.7,9.9677]
[1750946494267,0.82115,2434.8,2434.7,2.7657]
[1750946494468,0.82135,2434.2,2434.1,7.319]
[1750946494771,0.82135,2434.2,2434.1,7.203]
[1750946494971,3.2078,2434.4,2434.1,7.203]
[1750946494972,4.0291,2434.4,2434.1,9.48109]
[1750946495168,0.82127,2434.5,2434.3,6.44054673]
[1750946495377,0.82123,2434.6,2434.4,2.21376]
[1750946495571,3.2078,2434.7,2434.5,7.9777]
[1750946495771,3.2078,2435.2,2434.6,11.04084673]
[1750946495967,3.2078,2435.2,2434.8,0.82114]
[1750946495968,0.82106,2435.1,2434.8,0.82114]
[1750946496168,4.02882,2435.2,2434.9,8.5965]
[1750946496372,4.02884,2435.2,2434.9,9.4176]
[1750946496573,0.82107,2435.1,2434.9,8.5965]
[1750946496774,0.82107,2435.1,2434.9,9.4176]
[1750946497070,0.82107,2435.1,2434.9,8.5965]
[1750946497269,0.82108,2435.0,2434.9,8.5965]
[1750946497475,0.82107,2435.1,2434.9,9.53341]
[1750946497667,0.82108,2435.0,2434.9,8.7123]
[1750946497972,0.82108,2435.0,2434.9,7.3198]
[1750946499071,0.82108,2435.0,2434.9,0.1158]
[1750946499775,3.2078,2435.2,2434.9,0.1158]
[1750946500265,0.82108,2435.0,2434.9,1.4612]
[1750946500975,0.82108,2435.0,2434.9,0.1158]
[1750946504781,0.82108,2435.0,2434.9,1.5481]
[1750946507081,0.82108,2435.0,2434.9,0.1158]
[1750946509087,0.82123,2434.5,2434.4,1.63124267]
[1750946509282,4.02903,2434.5,2434.4,1.63124267]
[1750946509482,0.82127,2434.4,2434.3,8.80824267]
[1750946511676,0.82127,2434.4,2434.3,1.63124267]
[1750946512388,0.82127,2434.4,2434.3,3.01594267]
[1750946512879,0.82131,2434.3,2434.2,1.63124267]
[1750946513080,0.82134,2434.2,2434.1,1.63124267]
[1750946514583,0.82137,2434.1,2434.0,9.3832]
[1750946514788,0.8019,2434.3,2434.0,11.02200475]
[1750946514990,0.82134,2434.2,2434.0,11.84338475]
[1750946515185,0.82136,2434.2,2434.0,11.02200475]
[1750946515387,0.82136,2434.2,2434.1,0.82137]
[1750946515589,0.82136,2434.2,2434.1,2.22857]
[1750946516096,0.82136,2434.2,2434.1,1.4072]
[1750946516291,4.80846,2434.5,2434.1,1.4072]
[1750946516494,3.2078,2434.8,2434.4,6.44054673]
[1750946516699,3.2078,2434.8,2434.7,0.82117]
[1750946517495,4.02895,2434.8,2434.6,1.57398]
[1750946517695,3.2078,2434.8,2434.7,1.4367]
[1750946517997,0.82112,2434.9,2434.8,0.82114]
[1750946518396,0.82114,2434.8,2434.7,0.82115]
[1750946518698,0.82116,2434.8,2434.6,0.8212]
[1750946518996,4.02892,2434.9,2434.7,0.82114]
[1750946519395,4.02892,2434.9,2434.8,1.4367]
[1750946520400,3.2078,2434.9,2434.8,2.25783]
[1750946520592,0.82108,2435.0,2434.8,8.69837673]
[1750946520899,0.82108,2435.0,2434.9,7.178]
[1750946521103,0.82108,2435.0,2434.9,8.619]
[1750946521498,5.65729134,2435.2,2434.9,8.619]
[1750946521702,5.65729134,2435.2,2434.9,9.44008]
[1750946521703,0.82104,2435.1,2434.9,9.44008]
[1750946522401,0.82104,2435.1,2435.0,0.82107]
[1750946522604,3.2078,2435.2,2435.0,1.353]
[1750946522903,4.02882,2435.2,2435.0,2.17405]
[1750946523196,0.82107,2435.0,2434.9,7.178]
[1750946523695,0.82109,2435.0,2434.8,7.99913]
[1750946523895,5.65729134,2435.2,2434.8,7.99913]
[1750946523896,0.8211,2434.9,2434.8,9.35213]
[1750946524092,3.2078,2435.2,2434.8,9.35213]
[1750946524295,3.2078,2435.2,2434.8,8.531]
[1750946524492,0.82117,2434.7,2434.6,8.81680475]
[1750946524693,3.2078,2434.9,2434.6,7.178]
[1750946524899,0.82115,2434.8,2434.6,8.531]
[1750946525103,0.82115,2434.8,2434.6,9.35219]
[1750946525299,0.8212,2434.6,2434.5,1.63880475]
[1750946525603,0.82123,2434.5,2434.4,8.81680475]
[1750946525797,0.82123,2434.5,2434.4,7.178]
[1750946526200,0.82127,2434.4,2434.3,1.63880475]
[1750946528007,0.82127,2434.5,2434.3,2.46009475]
[1750946528309,3.2078,2434.6,2434.2,2.46012475]
[1750946528508,0.82127,2434.4,2434.3,2.283]
[1750946528701,0.82127,2434.4,2434.3,3.10050475]
[1750946528903,0.82127,2434.4,2434.3,3.91980475]
[1750946529103,0.82127,2434.4,2434.3,3.1023]
[1750946529304,0.8115,2434.8,2434.3,2.281]
[1750946529607,0.82114,2434.8,2434.6,0.8212]
[1750946529807,3.2078,2434.9,2434.6,7.178]
[1750946529808,0.82117,2434.7,2434.6,7.178]
[1750946530510,0.82116,2434.8,2434.6,7.99918]
[1750946530709,0.82117,2434.7,2434.6,9.40838]
[1750946531004,0.82116,2434.8,2434.6,8.5872]
[1750946531207,0.82116,2434.8,2434.7,0.82117]
[1750946531405,3.2078,2434.9,2434.8,0.82113]
[1750946531610,3.2078,2434.9,2434.6,15.02774673]
[1750946531811,0.82117,2434.7,2434.6,8.5872]
[1750946532008,0.82117,2434.7,2434.6,7.149]
[1750946532414,4.02892,2434.9,2434.7,0.82115]
[1750946532707,0.82113,2434.8,2434.7,0.82115]
[1750946532913,0.82113,2434.8,2434.6,9.29068]
[1750946533411,4.02892,2434.9,2434.7,0.82117]
[1750946533815,3.2078,2434.9,2434.7,0.82117]
[1750946534009,3.2078,2434.9,2434.8,0.82113]
[1750946534214,6.47830134,2435.2,2435.0,0.82104]
[1750946534422,4.02881,2435.2,2435.0,0.82103]
[1750946534711,3.2078,2435.2,2434.9,32.65154673]
[1750946534911,3.2078,2435.2,2434.9,34.04944673]
[1750946535112,4.02882,2435.2,2435.0,0.82105]
[1750946535311,0.82103,2435.1,2435.0,7.97006]
[1750946535707,4.02883,2435.2,2435.0,7.97006]
[1750946535910,4.02883,2435.2,2435.0,9.36796]
[1750946536513,3.2078,2435.2,2435.1,0.82103]
[1750946536913,4.0288,2435.2,2435.1,2.21893]
[1750946537112,3.2078,2435.2,2435.1,2.21893]
[1750946537809,0.82103,2435.1,2435.0,7.149]
[1750946538015,3.2078,2435.2,2435.0,7.97005]
[1750946538220,4.02882,2435.2,2435.1,0.82103]
[1750946538417,0.82103,2435.1,2435.0,7.97004]
[1750946539313,0.82103,2435.1,2435.0,7.149]
[1750946539527,0.82107,2435.0,2434.9,1.63968679]
[1750946539811,0.82107,2435.0,2434.7,3.89211795]